bitfinex/quotes_SOLUSD_20260109
["timestamp","ask_amount","ask_price","bid_price","bid_amount"]
[1767976012382,0.68137589,139.71,139.66,10.62258191]
[1767976012582,7.15740584,139.72,139.68,0.70644051]
[1767976012787,5.3477403,139.71,139.68,0.70644051]
[1767976012989,7.83878173,139.72,139.68,0.70644051]
[1767976013299,5.34777667,139.71,139.68,0.70644051]
[1767976013502,0.68137589,139.72,139.68,3.46235311]
[1767976013703,0.68137589,139.72,139.69,2.7559126]
[1767976013896,0.69517175,139.73,139.7,2.7559126]
[1767976014393,7.85081741,139.75,139.7,3.44490416]
[1767976014597,6.04232538,139.74,139.7,3.44490416]
[1767976014798,0.69517175,139.74,139.7,3.44490416]
[1767976015093,0.69517175,139.74,139.68,7.84809197]
[1767976015299,0.69517175,139.72,139.68,9.91501301]
[1767976015501,0.69517175,139.72,139.67,69.74853313]
[1767976015680,7.15768377,139.71,139.68,2.7559126]
[1767976015885,7.85285552,139.71,139.68,2.7559126]
[1767976016102,0.69517175,139.71,139.68,2.7559126]
[1767976016787,0.69517175,139.73,139.7,2.7559126]
[1767976018416,0.69517175,139.71,139.66,7.84891491]
[1767976018597,0.69517175,139.71,139.67,2.7559126]
[1767976018782,0.69517175,139.71,139.68,2.7559126]
[1767976020004,7.85299553,139.71,139.66,7.84911971]
[1767976020183,0.69517175,139.71,139.67,9.91534112]
[1767976020491,0.69517175,139.71,139.67,2.7559126]
[1767976020692,0.69517175,139.7,139.66,3.44490416]
[1767976020892,0.69517175,139.7,139.66,2.7559126]
[1767976021197,0.69517175,139.7,139.66,7.84891069]
[1767976021409,0.69517175,139.71,139.68,2.7559126]
[1767976021781,0.69517175,139.71,139.67,7.84843798]
[1767976021982,0.69517175,139.71,139.68,2.7559126]
[1767976022411,7.85080681,139.75,139.71,0.68899156]
[1767976022704,0.69517175,139.73,139.69,2.7559126]
[1767976022889,6.00965539,139.72,139.69,2.7559126]
[1767976023087,0.65905782,139.71,139.68,2.7559126]
[1767976023513,0.50231415,139.71,139.68,2.7559126]
[1767976023689,0.50231415,139.71,139.68,0.70167318]
[1767976024010,0.50231415,139.71,139.68,7.86080352]
[1767976024310,7.15783788,139.71,139.67,2.7559126]
[1767976024490,7.15783788,139.71,139.66,7.86161891]
[1767976024807,7.15783788,139.71,139.67,2.7559126]
[1767976025483,7.8168957,139.71,139.67,2.7559126]
[1767976025683,0.65905782,139.7,139.67,2.7559126]
[1767976026111,0.65905782,139.7,139.66,7.86161891]
[1767976026313,7.81729764,139.7,139.66,0.70167318]
[1767976026609,7.81729764,139.7,139.66,3.45758578]
[1767976027796,0.65905782,139.69,139.65,13.76167318]
[1767976028093,0.65905782,139.69,139.65,16.51758578]
[1767976028302,7.81804023,139.69,139.65,3.45758578]
[1767976028700,6.01365933,139.68,139.63,7.8633117]
[1767976028907,0.65905782,139.67,139.63,0.70167318]
[1767976029097,0.65905782,139.67,139.63,3.45758578]
[1767976029299,0.65905782,139.67,139.63,2.7559126]
[1767976030410,0.65905782,139.66,139.63,2.7559126]
[1767976031006,0.65905782,139.66,139.61,0.2]
[1767976031209,0.65905782,139.65,139.61,0.2]
[1767976031407,0.65905782,139.65,139.61,2.9559126]
[1767976031602,0.65905782,139.65,139.61,0.2]
[1767976031603,0.65905782,139.64,139.61,0.2]
[1767976031819,0.65905782,139.63,139.58,0.2]
[1767976032118,1.5546943,139.59,139.58,0.2]
[1767976033720,1.5546943,139.59,139.58,2.9559126]
[1767976033897,1.5546943,139.59,139.58,0.2]
[1767976034099,2.21375212,139.59,139.56,2.7559126]
[1767976034308,2.21375212,139.59,139.55,0.2]
[1767976034309,0.65905782,139.57,139.55,0.2]
[1767976034510,0.65905782,139.56,139.55,0.2]
[1767976034914,0.65905782,139.57,139.55,0.2]
[1767976035120,7.82413765,139.57,139.55,0.2]
[1767976035425,10.58005025,139.57,139.55,0.2]
[1767976035603,14.6346943,139.59,139.56,0.70167318]
[1767976035921,14.6346943,139.59,139.56,3.45758578]
[1767976036502,1.5546943,139.59,139.56,14.91349381]
[1767976036707,1.5546943,139.59,139.56,7.7483133]
[1767976037112,0.65905782,139.56,139.53,0.2]
[1767976037422,7.70569794,139.55,139.53,0.2]
[1767976038326,0.65905782,139.55,139.53,0.2]
[1767976038516,7.70569794,139.55,139.53,0.2]
[1767976039027,14.87170399,139.55,139.53,0.2]
[1767976039905,7.70569794,139.54,139.53,1e-08]
[1767976040105,7.70569794,139.54,139.48,7.36907025]
[1767976040106,0.55445724,139.5,139.43,3.73155224]
[1767976040308,7.04664012,139.45,139.41,0.70167318]
[1767976040510,7.04664012,139.5,139.45,0.70167318]
[1767976040731,0.55905782,139.51,139.46,7.7483133]
[1767976040732,13.08,139.51,139.46,7.7483133]
[1767976040920,13.08,139.51,139.48,0.70167318]
[1767976041624,7.04664012,139.53,139.49,0.70167318]
[1767976041625,13.08,139.53,139.49,0.70167318]
[1767976042826,14.21334739,139.54,139.49,7.7483133]
[1767976043130,14.21334739,139.54,139.48,7.16936672]
[1767976043131,27.29334739,139.54,139.5,0.70167318]
[1767976044426,14.21334739,139.54,139.5,0.70167318]
[1767976044749,7.16670727,139.54,139.5,0.70167318]
[1767976045116,14.21334739,139.54,139.5,0.70167318]
[1767976045539,7.16670727,139.54,139.5,0.70167318]
[1767976045745,13.179,139.55,139.51,0.70167318]
[1767976045746,13.08,139.55,139.51,0.70167318]
[1767976046236,20.2459957,139.55,139.51,0.70167318]
[1767976046442,13.08,139.55,139.51,0.70167318]
[1767976046646,27.29257967,139.55,139.51,0.70167318]
[1767976046820,14.21257967,139.55,139.51,0.70167318]
[1767976047019,7.04664012,139.54,139.51,0.70167318]
[1767976047410,7.04664012,139.54,139.49,0.70167318]
[1767976048040,7.1669175,139.53,139.49,0.70167318]
[1767976050324,7.16591514,139.55,139.5,0.70167318]
[1767976050523,13.08,139.54,139.5,0.70167318]
[1767976051520,7.04664012,139.53,139.5,0.70167318]
[1767976051940,0.10355457,139.54,139.5,0.70167318]
[1767976052240,14.21379883,139.53,139.48,0.70167318]
[1767976052544,17.91254692,139.57,139.51,0.70167318]
[1767976052728,20.12664012,139.56,139.51,0.70167318]
[1767976052934,7.04664012,139.55,139.51,0.70167318]
[1767976053241,7.04664012,139.54,139.51,0.70167318]
[1767976053745,7.04664012,139.55,139.51,0.70167318]
[1767976054621,14.21286894,139.55,139.51,0.70167318]
[1767976055139,7.59658833,139.54,139.49,0.66613962]
[1767976055627,7.15465863,139.53,139.49,0.66613962]
[1767976055942,13.63905782,139.53,139.46,0.66613962]
[1767976056152,13.63905782,139.53,139.45,0.66613962]
[1767976056153,0.099,139.52,139.45,0.66613962]
[1767976056442,7.04664012,139.51,139.46,0.66613962]
[1767976056644,27.29442017,139.52,139.47,0.66613962]
[1767976057041,7.16732167,139.53,139.48,0.66613962]
[1767976057231,7.14564012,139.57,139.52,0.66613962]
[1767976057437,7.04664012,139.55,139.52,0.66613962]
[1767976057641,7.04664012,139.55,139.5,0.66613962]
[1767976058141,25.07744135,139.57,139.52,0.66613962]
[1767976058333,7.16528258,139.57,139.52,0.66613962]
[1767976058658,23.00914082,139.57,139.52,0.66613962]
[1767976059256,2.76385824,139.56,139.52,0.66613962]
[1767976059637,2.76385824,139.55,139.52,0.66613962]
[1767976060752,9.9297486,139.55,139.52,0.66613962]
[1767976060956,20.24538163,139.56,139.52,0.66613962]
[1767976062051,23.00923987,139.56,139.52,0.66613962]
[1767976062657,24.56428758,139.56,139.52,0.66613962]
[1767976063138,18.46922995,139.59,139.52,0.66613962]
[1767976063344,4.31890595,139.58,139.53,0.66613962]
[1767976063664,4.31890595,139.57,139.53,0.66613962]
[1767976063848,7.16435019,139.58,139.53,0.66613962]
[1767976064158,4.31890595,139.57,139.53,0.66613962]
[1767976064650,4.31890595,139.57,139.51,0.66613962]
[1767976064651,4.31890595,139.55,139.51,0.66613962]
[1767976065034,4.31890595,139.54,139.51,0.66613962]
[1767976066047,11.48545435,139.54,139.51,0.66613962]
[1767976066471,4.31890595,139.53,139.48,0.66613962]
[1767976066756,4.31890595,139.51,139.48,0.66613962]
[1767976067246,4.31890595,139.5,139.46,0.66613962]
[1767976067446,0.10355457,139.51,139.47,0.66613962]
[1767976067447,4.31890595,139.51,139.47,0.66613962]
[1767976067642,5.00494586,139.51,139.47,0.66613962]
[1767976067848,4.31890595,139.5,139.47,0.66613962]
[1767976068043,12.17453679,139.48,139.42,0.66613962]
[1767976068249,4.31890595,139.47,139.43,0.66613962]
[1767976068449,0.65393688,139.46,139.41,22.93807823]
[1767976068740,0.65393688,139.46,139.42,0.68721532]
[1767976068945,0.65393688,139.47,139.42,5.00612127]
[1767976069142,0.65393688,139.45,139.41,7.1729682]
[1767976069350,4.94284284,139.45,139.41,7.86018352]
[1767976069545,4.31890595,139.47,139.42,7.85927809]
[1767976070261,7.16959093,139.48,139.42,7.85927809]
[1767976070262,4.31890595,139.48,139.43,5.00612127]
[1767976070457,7.16968131,139.48,139.43,0.68721532]
[1767976070661,4.31890595,139.47,139.43,0.68721532]
[1767976070847,4.31890595,139.48,139.43,0.68721532]
[1767976071045,11.48808251,139.49,139.43,5.00612127]
[1767976071245,7.82311344,139.49,139.44,0.68721532]
[1767976071449,0.65393688,139.49,139.45,5.00612127]
[1767976071647,0.65393688,139.49,139.45,0.68721532]
[1767976072046,0.65393688,139.49,139.45,5.00612127]
[1767976072467,0.65393688,139.49,139.45,19.3262609]
[1767976074059,0.65393688,139.49,139.45,7.85816613]
[1767976075972,0.65393688,139.49,139.45,19.3262609]
[1767976076144,12.12203165,139.51,139.46,0.68721532]
[1767976076350,0.65393688,139.53,139.49,0.68721532]
[1767976076650,5.34078223,139.52,139.49,12.15531009]
[1767976076855,0.65393688,139.53,139.49,0.68721532]
[1767976077054,5.34053052,139.52,139.49,0.68721532]
[1767976077374,19.28862692,139.54,139.49,0.68721532]
[1767976077670,13.08,139.55,139.47,12.15531009]
[1767976077671,0.65393688,139.52,139.47,12.15531009]
[1767976078052,0.65393688,139.52,139.47,19.32491674]
[1767976078275,0.65393688,139.52,139.48,0.68721532]
[1767976078657,5.34556484,139.51,139.48,0.68721532]
[1767976078955,0.65393688,139.52,139.48,0.68721532]
[1767976079158,5.34556484,139.51,139.48,0.68721532]
[1767976079467,0.65393688,139.52,139.48,0.68721532]
[1767976079662,5.34731789,139.51,139.48,19.32468535]
[1767976079850,0.65393688,139.52,139.48,19.32468535]
[1767976080051,5.34728059,139.51,139.48,19.32468535]
[1767976080251,19.28966213,139.52,139.47,0.68721532]
[1767976080466,5.34777872,139.51,139.47,0.68721532]
[1767976080663,5.34777872,139.5,139.47,0.68721532]
[1767976080976,19.28966213,139.52,139.47,7.85703882]
[1767976081180,7.82156736,139.52,139.47,19.32513359]
[1767976081473,5.35040543,139.51,139.48,7.16939469]
[1767976081679,0.65393688,139.54,139.49,0.68721532]
[1767976081859,0.65393688,139.54,139.48,18.63748946]
[1767976081860,12.12203165,139.56,139.52,0.68721532]
[1767976082058,12.12203165,139.56,139.48,7.16939469]
[1767976082059,5.34915313,139.55,139.5,0.68721532]
[1767976082280,12.12203165,139.56,139.52,0.68721532]
[1767976082454,5.34955256,139.55,139.52,0.68721532]
[1767976082654,12.12203165,139.56,139.52,0.68721532]
[1767976082855,5.34951061,139.55,139.52,0.68721532]
[1767976083056,12.12203165,139.56,139.52,0.68721532]
[1767976083360,5.34954946,139.55,139.52,0.68721532]
[1767976083556,5.34993119,139.54,139.52,0.68721532]
[1767976083760,19.28758945,139.56,139.52,0.68721532]
[1767976083977,5.34977446,139.55,139.52,0.68721532]
[1767976084275,19.28758945,139.56,139.52,0.68721532]
[1767976084878,5.34981274,139.55,139.52,0.68721532]
[1767976085172,19.28758945,139.56,139.52,0.68721532]
[1767976085972,24.54809477,139.57,139.53,0.69158716]
[1767976086157,0.62913873,139.6,139.54,0.69158716]
[1767976086365,0.62913873,139.62,139.57,0.69158716]
[1767976086683,5.3488238,139.61,139.57,0.57158716]
[1767976086977,12.0972335,139.62,139.57,0.57158716]
[1767976087274,11.46809477,139.62,139.57,18.6328979]
[1767976088568,11.46809477,139.62,139.58,0.69158716]
[1767976089283,18.63041006,139.62,139.58,0.69158716]
[1767976089594,18.63041006,139.62,139.58,0.63158716]
[1767976089968,11.46809477,139.62,139.58,0.63158716]
[1767976090175,12.18665893,139.63,139.58,7.16434029]
[1767976090478,19.34846718,139.63,139.58,7.16434029]
[1767976090997,11.46809477,139.62,139.58,7.16434029]
[1767976091213,19.34846718,139.63,139.58,7.16434029]
[1767976091398,12.18665893,139.63,139.58,7.16434029]
[1767976091582,13.08,139.64,139.58,18.63243506]
[1767976091583,18.62949444,139.64,139.58,18.63243506]
[1767976091896,12.18665893,139.63,139.59,0.63158716]
[1767976092069,11.46809477,139.63,139.59,0.60450968]
[1767976092274,12.18665893,139.62,139.57,7.16474284]
[1767976092471,5.03409191,139.62,139.57,20.24474284]
[1767976092691,0.71856416,139.62,139.57,20.24474284]
[1767976092882,5.03409191,139.62,139.57,20.24474284]
[1767976093084,5.03409191,139.62,139.57,13.08]
[1767976093288,12.19673751,139.62,139.57,13.08]
[1767976093601,12.19673751,139.62,139.57,20.24481949]
[1767976094202,11.47817335,139.62,139.58,0.69158716]
[1767976094379,11.47817335,139.62,139.58,0.66490899]
[1767976094580,11.47817335,139.62,139.58,0.60996466]
[1767976095089,12.19610626,139.63,139.58,7.16432983]
[1767976095293,12.19610626,139.63,139.57,24.56008255]
[1767976095874,7.88057851,139.63,139.57,20.2445548]
[1767976096078,4.31552775,139.62,139.57,20.2445548]
[1767976096479,4.31552775,139.62,139.58,0.69158716]
[1767976096785,7.88055861,139.63,139.59,0.69158716]
[1767976096977,12.19608636,139.63,139.59,0.69158716]
[1767976097396,7.88055861,139.63,139.59,0.69158716]
[1767976097697,12.19608636,139.63,139.59,0.69158716]
[1767976098395,5.03409191,139.63,139.59,0.69158716]
[1767976098711,5.03409191,139.62,139.57,7.85621876]
[1767976098897,0.71856416,139.61,139.57,20.93621876]
[1767976099087,5.03409191,139.61,139.57,20.93621876]
[1767976099976,0.71856416,139.62,139.58,0.69158716]
[1767976100275,4.31552775,139.61,139.58,0.69158716]
[1767976100476,5.03409191,139.62,139.58,7.85582377]
[1767976100676,5.03409191,139.6,139.57,13.08]
[1767976100890,5.03409191,139.58,139.54,7.85766725]
[1767976101180,0.71856416,139.58,139.54,7.85766725]
[1767976101584,5.03409191,139.58,139.54,7.85766725]
[1767976102203,4.31552775,139.58,139.55,7.85746736]
[1767976104199,4.31552775,139.56,139.53,0.69158716]
[1767976104702,5.03409191,139.57,139.54,7.16638853]
[1767976105002,5.03409191,139.57,139.53,7.85827644]
[1767976105203,0.71856416,139.58,139.54,7.8579372]
[1767976105382,5.03409191,139.59,139.55,7.85744102]
[1767976105581,0.71856416,139.58,139.55,7.85744102]
[1767976105800,0.71856416,139.58,139.55,7.16585386]
[1767976107679,0.71856416,139.56,139.53,7.16648523]
[1767976107880,0.71856416,139.56,139.53,20.24648523]
[1767976108208,0.71856416,139.56,139.52,0.69158716]
[1767976108209,0.71856416,139.55,139.52,20.93882996]
[1767976108698,5.03409191,139.57,139.53,0.69158716]
[1767976109005,0.71856416,139.56,139.52,20.24718806]
[1767976109304,0.71856416,139.55,139.52,13.08]
[1767976109701,5.03409191,139.54,139.49,18.61328318]
[1767976109999,5.03409191,139.51,139.47,0.69158716]
[1767976110299,0.71856416,139.51,139.47,7.86144821]
[1767976110809,5.03409191,139.51,139.47,0.69158716]
[1767976111106,5.03409191,139.5,139.45,20.94234402]
[1767976111404,7.16823915,139.51,139.45,13.77158716]
[1767976111405,5.03409191,139.49,139.45,13.77158716]
[1767976112478,12.18915265,139.49,139.45,13.77158716]
[1767976112676,0.71856416,139.49,139.45,13.77158716]
[1767976112901,12.18915265,139.49,139.45,13.77158716]
[1767976113507,12.18915265,139.49,139.45,20.94254041]
[1767976113806,12.15915266,139.49,139.45,20.94254041]
[1767976114111,7.16873855,139.5,139.46,0.65772474]
[1767976114112,11.47058849,139.5,139.46,0.65772474]
[1767976114283,7.16834077,139.51,139.47,0.65772474]
[1767976114482,18.63892926,139.51,139.47,0.65772474]
[1767976115009,11.47058849,139.52,139.47,0.65772474]
[1767976115306,11.47058849,139.52,139.48,0.65772474]
[1767976115806,12.15403672,139.52,139.48,0.65772474]
[1767976116596,0.68344823,139.52,139.48,0.65772474]
[1767976116806,19.32147596,139.52,139.48,0.65772474]
[1767976117007,19.32147596,139.52,139.45,13.08]
[1767976117008,0.68344823,139.49,139.45,13.08]
[1767976117191,0.65344824,139.49,139.45,20.90864421]
[1767976118211,11.47058849,139.5,139.46,0.65772474]
[1767976118788,11.47058849,139.49,139.44,0.65772474]
[1767976119194,11.47058849,139.49,139.45,0.65772474]
[1767976119608,12.15403672,139.49,139.45,0.65772474]
[1767976120287,19.29307864,139.49,139.45,0.65772474]
[1767976121303,19.32307863,139.49,139.45,0.65772474]
[1767976122486,14.91107237,139.49,139.45,0.65772474]
[1767976123698,0.68344823,139.47,139.43,13.73772474]
[1767976123903,0.68344823,139.47,139.44,0.65772474]
[1767976124214,7.74203046,139.48,139.44,0.65772474]
[1767976124511,14.91107237,139.49,139.45,0.65772474]
[1767976124692,0.68344823,139.48,139.45,0.65772474]
[1767976125292,14.22762414,139.49,139.45,0.65772474]
[1767976125493,14.91107237,139.49,139.45,0.65772474]
[1767976126094,0.68344823,139.48,139.44,0.65772474]
[1767976127796,0.68344823,139.48,139.44,7.829261]
[1767976129217,0.68344823,139.48,139.45,0.67518887]
[1767976129525,14.22721035,139.5,139.46,0.67518887]
[1767976129893,7.71508148,139.49,139.45,0.67518887]
[1767976130089,7.71508148,139.49,139.45,7.84613672]
[1767976131020,7.71508148,139.49,139.46,0.67518887]
[1767976131238,0.65649925,139.47,139.44,0.67518887]
[1767976131525,14.88408315,139.49,139.45,0.67518887]
[1767976132847,14.88356548,139.5,139.46,0.67518887]
[1767976133049,0.65649925,139.54,139.49,0.67518887]
[1767976133221,7.71508148,139.56,139.52,0.67518887]
[1767976133734,14.88054983,139.56,139.52,0.67518887]
[1767976134522,10.58604108,139.56,139.52,0.67518887]
[1767976136349,0.65649925,139.53,139.49,7.84383987]
[1767976136529,3.42057273,139.52,139.47,13.75518887]
[1767976136731,0.65649925,139.54,139.49,7.84404885]
[1767976137046,3.42057273,139.54,139.49,7.84404885]
[1767976137239,0.65649925,139.54,139.49,7.84404885]
[1767976137444,2.76407348,139.53,139.49,0.67518887]
[1767976137632,3.42057273,139.53,139.49,0.67518887]
[1767976138631,10.5877343,139.53,139.49,0.67518887]
[1767976138942,10.5877343,139.53,139.49,7.84410483]
[1767976139142,10.5877343,139.53,139.49,0.67518887]
[1767976140250,10.5877343,139.53,139.48,7.16942596]
[1767976140251,0.65649925,139.52,139.48,0.67518887]
[1767976140551,2.76407348,139.49,139.45,7.84589123]
[1767976140856,3.42057273,139.5,139.46,0.67518887]
[1767976142543,0.65649925,139.5,139.46,0.67518887]
[1767976142758,7.82497728,139.5,139.46,0.67518887]
[1767976142959,7.16762582,139.52,139.47,0.67271317]
[1767976143150,3.45245878,139.52,139.47,0.67271317]
[1767976143359,3.45245878,139.51,139.46,0.67271317]
[1767976143649,0.6883853,139.51,139.46,0.67271317]
[1767976143847,2.76407348,139.52,139.48,0.67271317]
[1767976144056,3.45245878,139.52,139.48,0.67271317]
[1767976144549,3.45245878,139.52,139.48,7.84199091]
[1767976144728,10.61890917,139.54,139.49,0.67271317]
[1767976144929,2.76407348,139.53,139.49,0.67271317]
[1767976145451,10.61890917,139.54,139.49,0.67271317]
[1767976145653,0.6883853,139.56,139.52,0.67271317]
[1767976145833,7.8538642,139.56,139.52,0.67271317]
[1767976146033,0.6883853,139.56,139.52,0.67271317]
[1767976146236,7.85405816,139.56,139.52,0.67271317]
[1767976146430,10.61813164,139.56,139.52,0.67271317]
[1767976147145,0.6883853,139.55,139.5,7.16818522]
[1767976147341,9.92974634,139.56,139.5,0.67271317]
[1767976147342,3.45245878,139.54,139.5,0.67271317]
[1767976147734,0.6883853,139.54,139.5,7.84108427]
[1767976147946,0.6883853,139.54,139.5,0.67271317]
[1767976148550,0.6883853,139.53,139.49,7.84144489]
[1767976148756,3.45245878,139.53,139.49,7.84144489]
[1767976149060,0.6883853,139.53,139.49,7.84144489]
[1767976150538,0.6883853,139.53,139.49,10.60551837]
[1767976151229,2.76407348,139.58,139.51,0.67271317]
[1767976151230,0.6883853,139.55,139.51,0.67271317]
[1767976151430,0.6883853,139.56,139.52,0.67271317]
[1767976152360,0.6883853,139.55,139.51,3.43678665]
[1767976152849,0.6883853,139.55,139.51,10.60442465]
[1767976154365,10.61753194,139.57,139.52,0.67271317]
[1767976154562,10.61753194,139.57,139.52,3.43678665]
[1767976154862,0.6883853,139.56,139.52,10.60378197]
[1767976155041,0.6883853,139.56,139.53,0.67271317]
[1767976158440,0.6883853,139.56,139.53,7.83958184]
[1767976158774,10.61701824,139.58,139.53,7.83958184]
[1767976158954,0.6883853,139.57,139.53,7.83958184]
[1767976159160,3.45245878,139.57,139.53,7.83958184]
[1767976160269,10.61736737,139.57,139.53,7.83958184]
[1767976160565,10.61736737,139.57,139.52,0.67271317]
[1767976160566,3.45245878,139.56,139.52,0.67271317]
[1767976161268,3.45245878,139.56,139.52,7.84010814]
[1767976163176,0.6883853,139.56,139.52,7.84010814]
[1767976163378,3.45245878,139.56,139.52,7.84010814]
[1767976164192,10.61784211,139.56,139.52,0.67271317]
[1767976164391,3.45245878,139.56,139.52,0.67271317]
[1767976164577,3.45245878,139.56,139.52,7.84010072]
[1767976164783,3.45245878,139.56,139.53,0.67271317]
[1767976165090,0.6883853,139.53,139.49,0.67271317]
[1767976165290,7.1658232,139.56,139.51,0.67271317]
[1767976165593,2.76407348,139.55,139.51,0.67271317]
[1767976165787,7.1658232,139.56,139.52,0.67271317]
[1767976165988,2.76407348,139.55,139.52,0.67271317]
[1767976166172,2.76407348,139.55,139.51,7.84063816]
[1767976166574,9.92997587,139.55,139.51,0.67271317]
[1767976166775,2.76407348,139.55,139.51,0.67271317]
[1767976167193,10.61846539,139.55,139.51,0.67271317]
[1767976167399,3.45245878,139.54,139.51,0.67271317]
[1767976167697,10.61846539,139.55,139.51,0.67271317]
[1767976168803,7.85439191,139.55,139.51,7.84061233]
[1767976169094,3.45245878,139.55,139.51,7.84061233]
[1767976170484,0.6883853,139.54,139.51,7.16789916]
[1767976171593,0.6883853,139.53,139.5,7.16838282]
[1767976173818,3.47615677,139.55,139.51,0.66827122]
[1767976174000,0.71208329,139.55,139.51,0.66827122]
[1767976174179,3.47615677,139.55,139.51,0.66827122]
[1767976174498,0.71208329,139.56,139.51,0.66827122]
[1767976175180,0.71208329,139.55,139.51,0.66827122]
[1767976175375,2.76407348,139.56,139.51,0.66827122]
[1767976175376,0.71208329,139.54,139.51,0.66827122]
[1767976176206,0.71208329,139.55,139.51,7.83592614]
[1767976179315,0.71208329,139.55,139.51,20.91592614]
[1767976179709,0.71208329,139.55,139.52,0.66827122]
[1767976180313,0.71208329,139.58,139.54,0.66827122]
[1767976180511,5.35991063,139.57,139.54,0.66827122]
[1767976180810,0.71208329,139.58,139.54,0.66827122]
[1767976181113,17.90895545,139.6,139.55,0.66827122]
[1767976181114,0.71208329,139.6,139.55,0.66827122]
[1767976181303,5.35930734,139.59,139.56,0.66827122]
[1767976181500,0.71208329,139.58,139.54,20.24615438]
[1767976181813,3.47615677,139.58,139.54,20.8544256]
[1767976182014,0.71208329,139.58,139.54,20.8544256]
[1767976182390,0.71208329,139.58,139.54,20.18615438]
[1767976183519,0.71208329,139.58,139.55,0.66827122]
[1767976183711,0.71208329,139.58,139.55,0.60827122]
[1767976184601,0.71208329,139.58,139.54,42.41895854]
[1767976185316,0.71208329,139.58,139.54,104.31895854]
[1767976185919,0.71208329,139.58,139.55,0.66827122]
[1767976187119,0.71208329,139.58,139.56,7.16537689]
[1767976188002,0.6851734,139.59,139.56,7.16537689]
[1767976188201,0.6851734,139.57,139.56,7.16537689]
[1767976188397,0.6851734,139.57,139.56,7.10537689]
[1767976188597,0.6851734,139.59,139.56,7.10537689]
[1767976188798,4.31679442,139.6,139.57,4.31679442]
[1767976188799,0.6851734,139.6,139.57,4.31679442]
[1767976189106,0.6851734,139.6,139.57,4.25679442]
[1767976189306,0.6851734,139.6,139.57,24.50118303]
[1767976189524,0.6851734,139.62,139.58,0.70601099]
[1767976189819,0.6851734,139.6,139.57,13.78601099]
[1767976191112,0.6851734,139.6,139.57,13.08]
[1767976192825,0.6851734,139.6,139.56,87.16794412]
[1767976193006,0.6851734,139.6,139.56,20.9511497]
[1767976193614,0.6851734,139.6,139.57,0.70601099]
[1767976194122,0.6851734,139.63,139.59,0.70601099]
[1767976194426,0.6851734,139.62,139.59,0.70601099]
[1767976195001,7.16160196,139.64,139.59,5.02280541]
[1767976195002,0.6851734,139.64,139.59,5.02280541]
[1767976195317,0.6851734,139.63,139.59,18.10280541]
[1767976195707,0.6851734,139.63,139.59,25.26616036]
[1767976196704,0.6851734,139.63,139.6,0.70601099]
[1767976197523,0.6851734,139.65,139.61,5.02280541]
[1767976197723,0.6851734,139.65,139.61,7.86873612]
[1767976198024,0.6851734,139.65,139.62,0.70601099]
[1767976198232,5.00196782,139.66,139.62,0.70601099]
[1767976198529,0.6851734,139.65,139.62,0.70601099]
[1767976199323,0.6851734,139.66,139.62,5.02280541]
[1767976199623,0.6851734,139.66,139.62,12.18470007]
[1767976200433,0.6851734,139.67,139.63,0.70601099]
[1767976200731,0.2,139.68,139.66,0.70601099]
[1767976201029,0.2,139.68,139.62,20.24189466]
[1767976201030,0.6851734,139.67,139.64,13.08]
[1767976201234,5.00196782,139.66,139.63,13.08]
[1767976201606,0.6851734,139.66,139.63,13.08]
[1767976201805,0.02699011,139.63,139.6,7.86904103]
[1767976202006,0.02699011,139.63,139.61,13.08]
[1767976202223,0.02699011,139.63,139.59,0.28432314]
[1767976202224,5.02895793,139.63,139.59,0.70601099]
[1767976202429,0.6851734,139.6,139.57,0.70601099]
[1767976202611,5.00196782,139.6,139.57,0.70601099]
[1767976203006,5.00196782,139.6,139.55,7.88913627]
[1767976203209,5.00196782,139.6,139.56,0.7233963]
[1767976203426,5.00196782,139.6,139.56,7.88872333]
[1767976203733,5.01271207,139.61,139.57,7.88824994]
[1767976204224,7.858734,139.61,139.57,0.7233963]
[1767976204430,12.17552842,139.61,139.57,0.7233963]
[1767976205114,12.17514632,139.62,139.58,0.7233963]
[1767976205309,12.17514632,139.62,139.58,0.69640619]
[1767976206644,0.69591765,139.62,139.55,17.91390981]
[1767976206811,12.17501127,139.62,139.55,17.91390981]
[1767976207118,5.01271207,139.6,139.56,7.16522356]
[1767976207316,5.01271207,139.6,139.56,7.88861986]
[1767976207843,0.69591765,139.58,139.54,7.88979634]
[1767976208223,4.31679442,139.59,139.56,0.7233963]
[1767976208432,7.85821685,139.62,139.57,0.7233963]
[1767976208630,12.17501127,139.62,139.57,0.7233963]
[1767976208937,0.69591765,139.61,139.57,0.7233963]
[1767976209338,5.01271207,139.61,139.57,0.7233963]
[1767976209633,12.17471636,139.63,139.58,0.7233963]
[1767976209838,5.01271207,139.63,139.58,0.6633963]
[1767976210025,0.69591765,139.64,139.59,4.31679442]
[1767976210225,12.17401754,139.64,139.58,4.31679442]
[1767976210532,12.17401754,139.64,139.57,25.07695453]
[1767976210533,0.69591765,139.61,139.57,20.24479576]
[1767976210735,5.01271207,139.61,139.57,13.08]
[1767976211238,12.17558675,139.61,139.57,13.08]
[1767976211411,4.31679442,139.61,139.57,13.08]
[1767976211614,5.01271207,139.62,139.57,13.08]